Cogmind - Beta 13 @@@ ROGUE MODE // 2024.05.09 @ 16:28:17 Player: Olafz Result: Destroyed by S-10 Pest with Light Assault Rifle Performance ------------- Evolutions (1) 500 Regions Visited (3) 600 Robots Destroyed (9) 45 Value Destroyed (294) 294 Prototype IDs (0) 0 Alien Tech Used (0) 0 Bonus (0) 0 TOTAL SCORE: 1439 Bonus ------- None Cogmind --------- Core Integrity 0/400 Matter 300/300 Energy 100/100 System Corruption 0% Temperature Cool (0) Movement Core (50) Location -9/Materials Parts ------- > --- POWER (1) -------- (None) > --- PROPULSION (4) --- (None) > --- UTILITY (2) ------ (None) > --- WEAPON (2) ------- (None) > --- INVENTORY (5) ---- Ion Engine Light Ion Engine Light Treads Compact Wheel Small Storage Unit Peak State ------------ > --- POWER ------------ Light Nuclear Core > --- PROPULSION ------- Aluminum Leg Aluminum Leg > --- UTILITY ---------- Medium Storage Unit > --- WEAPON ----------- Assault Rifle Light Assault Rifle > --- INVENTORY -------- Ion Engine Light Ion Engine Light Treads Light Treads Aluminum Leg Compact Wheel Compact Wheel Small Storage Unit Medium Laser Grenade Launcher [Rating: 9] Favorites ----------- Power Improved Ion Engine Engine Improved Ion Engine Power Core Light Nuclear Core Propulsion Aluminum Leg Leg Aluminum Leg Wheel Compact Wheel Hover Unit Combat Airjet Utility Medium Storage Unit Storage Medium Storage Unit Weapon Assault Rifle Energy Gun Medium Laser Ballistic Gun Assault Rifle Launcher Grenade Launcher Build | -11 -10 -10 -9 ------- Run | Yrd Mat Min Mat Slots Evolved 2 | . . . 2 Power . | . . . . Propulsion 2 | . . . 2 Utility . | . . . . Weapon . | . . . . Parts Attached 12 | . 3 6 3 Power 3 | . 1 2 . Engine 2 | . 1 1 . Core 1 | . . 1 . Reactor . | . . . . Propulsion 4 | . 1 2 1 Treads . | . . . . Leg 2 | . 1 1 . Wheel 1 | . . 1 . Hover 1 | . . . 1 Flight . | . . . . Utility 1 | . 1 . . Device . | . . . . Storage 1 | . 1 . . Processor . | . . . . Hackware . | . . . . Protection . | . . . . Artifact . | . . . . Weapon 4 | . . 2 2 Energy Gun 1 | . . . 1 Energy Cannon . | . . . . Ballistic Gun 2 | . . 1 1 Ballistic Cannon . | . . . . Launcher 1 | . . 1 . Special Weapon . | . . . . Impact Weapon . | . . . . Slashing Weapon . | . . . . Piercing Weapon . | . . . . Special Melee Weapon . | . . . . Unidentified Prototypes . | . . . . Parts Lost 12 | . 1 6 5 Power 3 | . 1 1 1 Propulsion 4 | . . 2 2 Utility . | . . . . Weapon 5 | . . 3 2 Highest Loss Streak 5 | . 1 3 5 To Critical Strikes . | . . . . Average Slot Usage (%) 73 | . 83 83 35 Engine 10 | . 12 11 5 Core 1 | . . 2 . Leg 22 | . 28 26 5 Wheel 1 | . . . 5 Storage 12 | . 14 14 8 Energy Gun 1 | . . . 5 Ballistic Gun 22 | . 28 26 4 Naked Turns 27 | . . . 27 Heaviest Build 22 | 11 18 22 20 Greatest Support 20 | 20 20 20 16 Greatest Overweight (x) 3 | . . 1 3 Average Overweight (x) . | . . . . Largest Inventory Capacity 10 | . 10 10 10 Average Capacity 9 | . 9 10 8 Most Carried 10 | . 10 10 10 Average Carried 8 | . 7 9 7 Final Capacity 10 | 8 10 10 5 Final Carried 10 | 6 10 10 5 Class Distribution -------------------- 100% | Mutant Dominant Class ---------------- Mutant | -10/Materials Mutant | -10/Mines Mutant | -9/Materials Resources | -11 -10 -10 -9 ----------- Run | Yrd Mat Min Mat Matter Collected 423 | 174 . 188 61 Remotely . | . . . . Salvage Created 261 | . 100 124 37 Parts 18 | . 9 7 2 Haulers Intercepted . | . . . . Recyclers Shooed . | . . . . Parts Field Recycled . | . . . . Retrieved Matter . | . . . . Parts Self-Destructed . | . . . . Prevented . | . . . . Kills | -11 -10 -10 -9 ------- Run | Yrd Mat Min Mat Combat Hostiles Destroyed 7 | . 2 4 1 Melee 1 | . . . 1 Guns 5 | . 2 3 . AOE 1 | . . 1 . Classes Destroyed 4 | . 2 1 1 Watcher 2 | . 1 . 1 Swarmer 1 | . . . 1 Grunt 4 | . 2 2 . Sentry 2 | . . 2 . Best Kill Streak 2 | . 2 2 1 Combat Bots Only 2 | . 2 2 1 Max Kills in Single Turn 1 | . 1 1 1 Gunslinging . | . . . . Exploded 1 | . . 1 . Melee 1 | . . . 1 Uniques/NPCs Destroyed . | . . . . Combat | -11 -10 -10 -9 -------- Run | Yrd Mat Min Mat Hostile Shots Fired 132 | . 27 34 71 Missed 43 | . 11 11 21 Damage Taken 1526 | . 231 597 698 Core 621 | . 49 167 405 Absorbed by Shields . | . . . . Core Remaining (%) 56 | 100 . 13 . Volleys Fired 39 | . 15 12 12 Largest 2 | . 2 2 2 Hottest 70 | . 40 50 70 Shots Fired 77 | . 30 24 23 Gun 72 | . 30 19 23 Cannon . | . . . . Launcher 5 | . . 5 . Special . | . . . . Kinetic 60 | . 30 19 11 Thermal 12 | . . . 12 Explosive 5 | . . 5 . Electromagnetic . | . . . . Robot Hit Streak 11 | . 11 8 10 Robot Miss Streak 5 | . 2 1 5 Penetration Max . | . . . . Secondary Targets 3 | . 1 1 1 Max Gunslinging Chain 1 | . 1 1 1 Shots Hit Robots 54 | . 23 18 13 Core Hits 27 | . 9 13 5 Critical Kills . | . . . . Critical Parts Destroyed . | . . . . Critical Strikes 1 | . . . 1 Burn 1 | . . . 1 Melee Attacks . | . . . . Impact . | . . . . Slashing . | . . . . Piercing . | . . . . Sneak Attacks . | . . . . Combat Hostiles . | . . . . Follow-up Attacks . | . . . . Damage Inflicted 679 | . 243 263 173 Guns 515 | . 243 135 137 Cannons . | . . . . Explosions 121 | . . 121 . Melee . | . . . . Ramming 43 | . . 7 36 Kinetic 416 | . 243 135 38 Thermal 99 | . . . 99 Explosive 121 | . . 121 . Electromagnetic . | . . . . Impact . | . . . . Slashing . | . . . . Piercing . | . . . . Highest Corruption 2 | . 2 2 . Average Corruption 2 | . 2 2 . Corruption Purged . | . . . . Corruption Blocked . | . . . . Effects 5 | . . 5 . Matter Fused 2 | . . 2 . Energy Discharges 1 | . . 1 . Parts Fused 1 | . . 1 . Misfires 1 | . . 1 . Overload Shots . | . . . . Overflow Damage 9 | . . 9 . Projectiles . | . . . . Explosions 9 | . . 9 . Melee . | . . . . Knockbacks . | . . . . Impact . | . . . . Kinetic . | . . . . Secondary . | . . . . Self-Inflicted Damage 137 | . . 122 15 Shots 5 | . . 5 . Rammed 10 | . . . 10 Targets Rammed 11 | . . 1 10 Kicked 1 | . . 1 . Crushed . | . . . . Highest Temperature 200 | . 31 57 200 Average Temperature 55 | . 19 31 83 Received Heat Transfer 492 | . 144 138 210 Siege Activations . | . . . . Robots Corrupted . | . . . . Combat Hostiles . | . . . . Parts Fried . | . . . . Impact Corruptions . | . . . . Robots Melted . | . . . . Combat Hostiles . | . . . . Parts Melted . | . . . . Heat Transferred 370 | . . . 370 Parts Sabotaged . | . . . . Parts Stolen . | . . . . Parts Stripped . | . . . . Power Chain Reactions . | . . . . Alert | -11 -10 -10 -9 ------- Run | Yrd Mat Min Mat Peak Influence 125 | . 62 125 71 Initial 34 | . . 24 34 Average 51 | . 18 70 33 Maximum Alert Level . | . . . . Low Security (%) 100 | . 100 100 100 Level 1 . | . . . . Level 2 . | . . . . Level 3 . | . . . . Level 4 . | . . . . Level 5 . | . . . . High Security . | . . . . Max Security . | . . . . Squads Dispatched 1 | . . . 1 Investigation . | . . . . Extermination . | . . . . Reinforcement 1 | . . . 1 Assault . | . . . . Garrison . | . . . . Intercept . | . . . . Searches Triggered . | . . . . Construction Impeded . | . . . . Haulers Reinforced . | . . . . Active Scanning Responses . | . . . . Cargo Convoy Interrupts . | . . . . Stealth | -11 -10 -10 -9 --------- Run | Yrd Mat Min Mat Distress Signals 4 | . . . 4 Communications Jammed . | . . . . Distress Signals . | . . . . Times Spotted 31 | . 3 14 14 Peak Tracking Total 12 | . 2 9 12 Tactical Retreats 1 | . . . 1 Traps | -11 -10 -10 -9 ------- Run | Yrd Mat Min Mat Traps Triggered 2 | . 1 . 1 Indirectly . | . . . . Trap Hack Attempts . | . . . . Triggered . | . . . . Disarmed . | . . . . Reprogrammed . | . . . . Reused . | . . . . Traps Extracted . | . . . . Installed . | . . . . Triggered . | . . . . Machines | -11 -10 -10 -9 ---------- Run | Yrd Mat Min Mat Machines Disabled 2 | . . 2 . Max in Single Turn 1 | . . 1 . Machines Repaired . | . . . . Machines Dismantled . | . . . . Machines Sabotaged . | . . . . Overloaded Fab Kills . | . . . . Hacking | -11 -10 -10 -9 --------- Run | Yrd Mat Min Mat Machines Accessed . | . . . . Terminals . | . . . . Fabricators . | . . . . Repair Stations . | . . . . Recycling Units . | . . . . Scanalyzers . | . . . . Garrison Access . | . . . . Total Hacks . | . . . . Successful . | . . . . Failed . | . . . . Catastrophic . | . . . . Database Lockouts . | . . . . Manual . | . . . . Terminals . | . . . . Fabricators . | . . . . Repair Stations . | . . . . Recycling Units . | . . . . Scanalyzers . | . . . . Garrison Access . | . . . . Terminal Hacks . | . . . . Fabricator Hacks . | . . . . Repair Station Hacks . | . . . . Recycling Unit Hacks . | . . . . Scanalyzer . | . . . . Garrison Access Hacks . | . . . . Unauthorized Hacks . | . . . . Terminals . | . . . . Fabricators . | . . . . Repair Stations . | . . . . Recycling Units . | . . . . Scanalyzers . | . . . . Garrison Access . | . . . . Data Cores Recovered . | . . . . Used . | . . . . Hacking Detections . | . . . . Full Trace Events . | . . . . Feedback Events . | . . . . Feedback Blocked . | . . . . Robot Schematics Acquired . | . . . . Robots Built . | . . . . Authchips . | . . . . Time . | . . . . Total Robot Build Rating . | . . . . Part Schematics Acquired . | . . . . Parts Built . | . . . . Authchips . | . . . . Time . | . . . . Total Part Build Rating . | . . . . Parts Repaired . | . . . . Time . | . . . . Parts Recycled . | . . . . Recycled Matter . | . . . . Retrieved Matter . | . . . . Retrieved Components . | . . . . Parts Scanalyzed . | . . . . Part Schematics Acquired . | . . . . Parts Damaged . | . . . . Bothacking | -11 -10 -10 -9 ------------ Run | Yrd Mat Min Mat Used RIF Installer . | . . . . Robots Hacked . | . . . . Non-combat . | . . . . Combat . | . . . . Robot Hacks Applied . | . . . . Relay Couplers Released . | . . . . Fabnet Peak Effective % . | . . . . Robots Rewired . | . . . . Allies Hacked . | . . . . Hacks Repelled . | . . . . Allies | -11 -10 -10 -9 -------- Run | Yrd Mat Min Mat Total Allies . | . . . . Largest Group . | . . . . Highest-Rated Group . | . . . . Highest-Rated Ally . | . . . . Total Orders . | . . . . Ally Attacks . | . . . . Total Damage . | . . . . Kills . | . . . . Allies Corrupted . | . . . . Allies Melted . | . . . . Intel | -11 -10 -10 -9 ------- Run | Yrd Mat Min Mat Robot Analysis Total . | . . . . Derelict Logs Recovered 3 | . . 3 . Drone Launches . | . . . . Drone Recoveries . | . . . . Exploration | -11 -10 -10 -9 ------------- Run | Yrd Mat Min Mat Turns Passed 652 | . 153 375 124 Spaces Moved 403 | 1 85 237 80 Core 46 | . . . 46 Treads . | . . . . Legs 311 | 1 85 225 . Wheels 44 | . . 12 32 Hover 2 | . . . 2 Flight . | . . . . Fastest Speed 50 | 120 120 115 50 Average Speed 126 | 120 120 138 95 Slowest Speed 200 | 120 120 190 200 Overloaded Moves . | . . . . Propulsion Burnouts . | . . . . Robots Hopped . | . . . . Cave-ins Triggered . | . . . . Exploration Rate (%) 23 | 2 23 55 13 Regions Visited 3 Branch Regions 1 Pre-discovered Areas 2 | . . 2 . Known Exits Taken . | . . . . Unknown Exits Taken 3 | 1 1 1 . Scrap Searched 1 | . . 1 . Spaces Dug . | . . . . Terrain Destroyed 25 | . . 25 . Melee . | . . . . Projectile . | . . . . AOE 25 | . . 25 . Terrain Rammed . | . . . . Walls Destroyed . | . . . . Machines Disabled . | . . . . Actions | -11 -10 -10 -9 --------- Run | Yrd Mat Min Mat Total 473 | . 108 259 106 Wait 4 | . 3 1 . Move 400 | . 84 236 80 Hop . | . . . . Pick Up 4 | . 2 2 . Fast Attach 5 | . 2 3 . Attach 5 | . . 2 3 Detach 1 | . 1 . . Swap 2 | . 1 1 . Drop 2 | . . 1 1 Fire 39 | . 15 12 12 Melee . | . . . . Ram 10 | . . . 10 Kick 1 | . . 1 . Crush . | . . . . Escape Stasis . | . . . . Rewire . | . . . . Trap . | . . . . Miscellaneous . | . . . . Route ------- -11/Scrapyard -10/Materials (discovered 2 exits: [*Min x2]) -10/Mines -9/Materials History --------- Turn | Location | Event 1 | -11/Scrapyard | Discovered new exit (range 0) 1 | -11/Scrapyard | Entered Materials 1 | -10/Materials | Discovered new exit (range 8) 133 | -10/Materials | Discovered new exit (range 11) 154 | -10/Materials | Entered Mines 190 | -10/Mines | Learned location of Storage (-8) 223 | -10/Mines | Learned Materials non-interactive machine intel 308 | -10/Mines | Build established: Mutant 382 | -10/Mines | Core integrity fell below 50% 413 | -10/Mines | Lost 3 parts (1p1n1w) 490 | -10/Mines | Discovered new exit (range 15) 504 | -10/Mines | Assembled infested the area 509 | -10/Mines | Assisted by a Guerilla fighting off Assembled 524 | -10/Mines | Core integrity fell below 20% 529 | -10/Mines | Entered Materials 529 | -9/Materials | Evolved 2 slots: Propulsion x2 530 | -9/Materials | Loaded intel: 49 non-interactive machine locations 558 | -9/Materials | Lost 3 parts (1n2w) 606 | -9/Materials | Core integrity fell below 50% 618 | -9/Materials | Core integrity fell below 20% 634 | -9/Materials | Lost 5 parts (1p2n2w) 653 | -9/Materials | Destroyed by S-10 Pest with Light Assault Rifle Last Messages --------------- G-34 Mercenary unfolds itself. W-16 Scout destroyed. Switching to secondary target: G-34 Mercenary. L-31 Rogue suffers critical hit (Burn). Imp. Ion Engine destroyed. Aluminum Leg destroyed. Lgt. Assault Rifle destroyed. Com. Wheel destroyed. Med. Laser destroyed. Slammed into G-34 Mercenary. Triggered Blade Trap. Massive razor-sharp blades shoot up from within the floor. Cmb. Airjet severed. W-16 Scout sends out distress signal. Dropped Med. Storage Unit. Slammed into S-10 Pest. W-16 Scout sends out distress signal. S-10 Pest destroyed. Slammed into S-10 Pest. S-10 Pest destroyed. Map ----- +----------------------------------------------------+ | ??????????????????????????????? | | ??????????????????????????????? | | ??????????????????????????????? | | ??????????????????????????????? | | ??????????????????????????????? | | ??????????????????????????????? | | ??????????????????????????????? | | ????????????########??????????? | | ????????????# #??????????? | | ????????????#""" #??????????? | | ????????????#""" #??????????? | | ????????????#""" #????? #???? | | ????????????# #????" ????? | | ??????# ?????? ??? ??????? | | ??????+ #######+####/#######?? | | ??????# | | ??????# | | ??????###### ##/##########+#?? | | ####### # # #????????? | | # # / # """ #????????? | | # """ # # # """ #????????? | | # """ # # # """ #????????? | | # """ # # # =%* #????????? | | # """ #s#### # [ % #?????"""" | | # s#s#### #####/##?????"""" | | # """%@= #???#%#??????"""" | | # """ # #???#%#?????????? | | # """ ##+###+##???#%#?????????? | | # """ # ????????# #?????????? | | # # ????????# #?????????? | | ? # ?"""???# #?????????? | | ####### ?"""???# #??"""????? | | ??????# "" """???# #??"""????? | | ??????# S"" ??????# #??"""????? | | ??????# "" ?????# #??"""????? | | ??????# ?????# #?????????? | | ??????########????#=#???##+#### | | ??????# ! #????#!##### | | ??????# #????#* | | ??????# """" #????####### ^ | | ??????# """" #??????????# | | ??????# """" #??????????#= ^ " | | ??????# #??????????# ^" | | ??????####+############## " | | ??????# % " | | ??????# = | | ??????# | | ??????####+#################### | | ???????# #???????????????? | | ???????# #???????????????? | +----------------------------------------------------+ Best States ------------- Heat Dissipation 28 Energy Generation 14 Energy Capacity 265 Matter Stores 300 Matter Capacity 300 Sight Range 16 Terrain Scan Density 10 Evasion (%) 55 Item Schematics ----------------- None Robot Schematics ------------------ None Fabricated ------------ Nothing Alien Tech Used ----------------- None Achievements -------------- None Challenges ------------ None Game ------ Seed ZhirovDeliveryMicroactuators Manual? 0 Play Time 00:06:11 Cumulative 130.9 hours Start 2024.05.09 @ 16:16:25 End 2024.05.09 @ 16:28:17 Sessions 1 Manual Loads 0 Difficulty Rogue Special Mode None Game No. 222 Rogue 220 Adventurer 2 Explorer 0 Win Type - Total 4 Types 3/0/0/1/0/0/0/0/0 Lore% 59 Gallery% 62 Achievement% 48 Wizard Run 0 Options --------- Layout 0 ASCII 0 Keyboard 1 Movement Numpad Keybinds 1 Fullscreen 2 Font 18/SmallcapsGlow Map View 76x50 Zoom Use 0% Tactical HUD 1 Map Filters NONE Filters NONE Steam 1 RUN: 55fabfee-c283-4779-a4ba-d72e4148e8a0